Cogmind - Beta 14 @@@ ROGUE MODE // 2024.09.15 @ 18:21:57 Player: Lunace Result: Destroyed by G-50 Soldier with Heavy Laser Performance ------------- Evolutions (4) 2000 Regions Visited (7) 1400 Robots Destroyed (100) 500 Value Destroyed (3094) 3094 Prototype IDs (11) 220 Alien Tech Used (0) 0 Bonus (966) 966 TOTAL SCORE: 8180 Bonus ------- High Alert Combat Kills 482 Follower Combat Kills 285 Registered with UFD 300 Friendly Fire -101 Cogmind --------- Core Integrity 0/850 Matter 270/300 Energy 390/480 System Corruption 20% Temperature Cool (9) Movement Treading (160) Location -6/Extension Parts ------- > --- POWER (2) -------- Reinforced Deuterium Engine Reinforced Deuterium Engine > --- PROPULSION (4) --- Improved Medium Treads Improved Medium Treads Improved Medium Treads Improved Medium Treads > --- UTILITY (7) ------ Improved Cooling System Improved Cooling System Advanced Signal Interpreter Advanced Melee Analysis Suite Layered Medium Armor Plating > --- WEAPON (2) ------- Heavy Plasma Cannon Heavy Plasma Cannon > --- INVENTORY (5) ---- Improved Medium Treads Deep Structural Scanner Magnetic Acceleration Cannon CPS Tube (2) Vortex Trap Peak State ------------ > --- POWER ------------ Improved Deuterium Engine Light Antimatter Reactor > --- PROPULSION ------- Flexi-carbon Leg Flexi-carbon Leg Flexi-carbon Leg Flexi-carbon Leg > --- UTILITY ---------- Improved Cryofiber Web Advanced Heat Sink Large Storage Unit Deep Structural Scanner Advanced Melee Analysis Suite Improved Reaction Control System A0-MCA's Component Scanner > --- WEAPON ----------- KE Penetrator KE Penetrator > --- INVENTORY -------- Improved Deuterium Engine Flexi-carbon Leg Antigrav System Antigrav System Advanced Heat Sink Advanced Heat Sink Advanced Signal Interpreter Plasma Rifle Thermic Laser Heavy Rocket Launcher CPS Tube CPS Tube Spear Vortex Trap Vortex Trap [Rating: 83] Favorites ----------- Power Improved Deuterium Engine Engine Improved Deuterium Engine Power Core Light Nuclear Core Reactor Light Antimatter Reactor Propulsion Improved Treads Treads Improved Treads Leg Flexi-carbon Leg Utility Large Storage Unit Device Structural Scanner Storage Large Storage Unit Processor A0-MCA's Component Scanner Hackware Hacking Suite Protection Light Armor Plating Weapon Advanced Beam Rifle Energy Gun Advanced Beam Rifle Energy Cannon Proton Cannon Ballistic Gun KE Penetrator Launcher Grenade Launcher Special Weapon CPS Tube Impact Weapon Heavy Hammer Piercing Weapon Spear Build | -11 -10 -9 -9 -9 -9 -6 -6 ------- Run | Yrd Mat Mat Sto Rec Scr Fac Ext Slots Evolved 8 | . . 2 . . . 6 . Power 1 | . . . . . . 1 . Propulsion 2 | . . 1 . . . 1 . Utility 5 | . . 1 . . . 4 . Weapon . | . . . . . . . . Parts Attached 139 | 6 2 32 25 1 20 28 25 Power 17 | 1 . 3 2 . 2 3 6 Engine 15 | 1 . 3 2 . 2 1 6 Core 1 | . . . . . . 1 . Reactor 1 | . . . . . . 1 . Propulsion 28 | 2 . 6 6 . 3 6 5 Treads 19 | 2 . 6 3 . 3 1 4 Leg 9 | . . . 3 . . 5 1 Wheel . | . . . . . . . . Hover . | . . . . . . . . Flight . | . . . . . . . . Utility 38 | 1 . 9 2 1 9 11 5 Device 23 | . . 5 1 1 5 8 3 Storage 5 | 1 . 2 . . 2 . . Processor 4 | . . . . . 2 1 1 Hackware 1 | . . . . . . 1 . Protection 5 | . . 2 1 . . 1 1 Artifact . | . . . . . . . . Weapon 56 | 2 2 14 15 . 6 8 9 Energy Gun 28 | 2 . 8 9 . 4 3 2 Energy Cannon 5 | . . . 1 . 2 . 2 Ballistic Gun 7 | . 1 2 . . . 2 2 Ballistic Cannon . | . . . . . . . . Launcher 7 | . 1 2 3 . . . 1 Special Weapon 1 | . . . . . . . 1 Impact Weapon 5 | . . 2 2 . . 1 . Slashing Weapon . | . . . . . . . . Piercing Weapon 3 | . . . . . . 2 1 Special Melee Weapon . | . . . . . . . . Unidentified Prototypes 5 | . . 1 4 . . . . Parts Lost 37 | . . 11 2 . . 7 17 Power 7 | . . . 1 . . 2 4 Propulsion 9 | . . 3 . . . 1 5 Utility 11 | . . 3 1 . . 4 3 Weapon 10 | . . 5 . . . . 5 Highest Loss Streak 17 | . . 6 1 . . 6 17 To Critical Strikes . | . . . . . . . . Average Slot Usage (%) 94 | . 85 86 96 90 98 89 87 Engine 9 | . 14 11 11 11 10 3 5 Treads 25 | . 28 28 29 . 31 12 2 Leg 4 | . . . 3 33 1 11 20 Device 11 | . . 9 12 13 9 20 21 Storage 9 | . 14 11 11 11 9 6 4 Processor 9 | . . . . . 13 10 12 Protection 1 | . . 4 6 . . 1 . Energy Gun 8 | . 13 12 15 11 7 6 . Energy Cannon 7 | . . . . . 13 . . Ballistic Gun 1 | . 10 6 . . . 3 6 Impact Weapon 1 | . . . 3 11 . 1 . Peak Build Rating 83 | 6 6 20 26 22 39 81 83 Average Rating 33 | 4 5 12 22 21 34 60 70 On Entrance 24 | . 6 6 19 21 22 38 80 Naked Turns . | . . . . . . . . Heaviest Build 62 | 14 15 37 38 34 48 58 62 Greatest Support 120 | 40 40 60 69 39 69 92 120 Greatest Overweight (x) 10 | . . 10 1 . 1 . . Average Overweight (x) . | . . . . . . . . Largest Inventory Capacity 15 | 8 8 15 15 15 15 15 15 Average Capacity 13 | 7 8 13 15 15 13 15 13 Most Carried 15 | 2 6 14 15 14 15 15 15 Average Carried 11 | 1 4 6 13 13 12 11 11 Final Capacity 15 | 8 8 15 15 15 15 15 5 Final Carried 15 | 2 6 14 14 13 15 14 5 Class Distribution -------------------- 62% | Commander-Mutant 25% | Mutant 9% | Scavenger-Mutant Dominant Class ---------------- Mutant | -10/Materials Scavenger-Mutant | -9/Materials Mutant | -9/Storage Commander-Mutant | -9/Recycling Commander-Mutant | -9/Scraptown Mutant | -6/Factory Mutant | -6/Extension Resources | -11 -10 -9 -9 -9 -9 -6 -6 ----------- Run | Yrd Mat Mat Sto Rec Scr Fac Ext Matter Collected 2294 | 219 101 530 360 . 290 489 305 Remotely . | . . . . . . . . Salvage Created 3671 | . 206 1063 862 . . 1064 476 Parts 220 | . 17 57 64 . . 37 45 Haulers Intercepted 3 | . . . 2 . . 1 . Recyclers Shooed 9 | . 1 2 . . . 3 3 Parts Field Recycled . | . . . . . . . . Retrieved Matter . | . . . . . . . . Parts Self-Destructed . | . . . . . . . . Prevented . | . . . . . . . . Kills | -11 -10 -9 -9 -9 -9 -6 -6 ------- Run | Yrd Mat Mat Sto Rec Scr Fac Ext Combat Hostiles Destroyed 82 | . 7 30 29 . . 11 5 Melee 5 | . . . . . . 2 3 Guns 40 | . 4 16 10 . . 8 2 Cannons 1 | . . . 1 . . . . AOE 33 | . 3 12 18 . . . . Classes Destroyed 13 | . 4 1 5 . . 2 1 Worker 4 | . . . 1 . . 3 . Hauler 3 | . . . 2 . . 1 . Recycler 7 | . 1 2 . . . 3 1 Operator 1 | . . . 1 . . . . Watcher 3 | . 1 1 . . . . 1 Swarmer 29 | . 6 12 6 . . 5 . Grunt 24 | . 1 10 10 . . 3 . Brawler 1 | . . . . . . 1 . Duelist 3 | . . . 2 . . 1 . Protector 2 | . . . 2 . . . . Sentry 20 | . . 8 9 . . . 3 Programmer 1 | . . . . . . 1 . Behemoth 2 | . . . . . . . 2 Best Kill Streak 9 | . 5 9 9 . . 5 3 Combat Bots Only 9 | . 4 8 9 . . 3 2 Max Kills in Single Turn 4 | . 4 3 3 . . 2 1 Gunslinging 1 | . . . 1 . . . . Exploded 3 | . 3 3 3 . . . . Melee 1 | . . . . . . 1 1 Uniques/NPCs Destroyed . | . . . . . . . . Combat | -11 -10 -9 -9 -9 -9 -6 -6 -------- Run | Yrd Mat Mat Sto Rec Scr Fac Ext Hostile Shots Fired 558 | . 16 149 54 . . 72 267 Missed 184 | . 6 32 11 . . 18 117 Damage Taken 6097 | . 95 1600 851 . . 1174 2377 Core 1164 | . 20 134 160 . . 117 733 Absorbed by Shields 48 | . . 48 . . . . . Core Remaining (%) 72 | 100 92 . . . 26 . . Volleys Fired 187 | . 11 72 43 . . 37 24 Largest 2 | . 2 2 2 . . 2 2 Hottest 180 | . 70 122 129 . . 160 180 Shots Fired 338 | . 21 134 72 . . 69 42 Gun 293 | . 20 124 50 . . 69 30 Cannon 9 | . . . 2 . . . 7 Launcher 34 | . 1 10 20 . . . 3 Special 2 | . . . . . . . 2 Kinetic 120 | . 10 48 . . . 41 21 Thermal 182 | . 10 76 52 . . 28 16 Explosive 34 | . 1 10 20 . . . 3 Electromagnetic . | . . . . . . . . Robot Hit Streak 20 | . 9 20 11 . . 8 8 Robot Miss Streak 5 | . 3 4 3 . . 5 2 Penetration Max 1 | . . . . . . 1 1 Secondary Targets 7 | . 1 4 1 . . 1 . Max Gunslinging Chain 1 | . 1 1 1 . . 1 . Shots Hit Robots 244 | . 14 96 42 . . 56 36 Core Hits 159 | . 11 47 55 . . 26 20 Critical Kills . | . . . . . . . . Critical Parts Destroyed 6 | . . 2 . . . 2 2 Critical Strikes 19 | . . 4 4 . . 6 5 Burn 10 | . . 2 4 . . 2 2 Destroy 3 | . . 1 . . . . 2 Smash 3 | . . 1 . . . 2 . Impale 3 | . . . . . . 2 1 Melee Attacks 50 | . . 2 6 . . 33 9 Impact 29 | . . 2 6 . . 21 . Slashing . | . . . . . . . . Piercing 21 | . . . . . . 12 9 Sneak Attacks 3 | . . . . . . 3 . Combat Hostiles . | . . . . . . . . Follow-up Attacks . | . . . . . . . . Damage Inflicted 8373 | . 316 2256 2893 . . 1668 1240 Guns 3691 | . 176 1293 620 . . 1049 553 Cannons 117 | . . . 20 . . . 97 Explosions 3571 | . 140 872 2253 . . . 306 Melee 990 | . . 87 . . . 619 284 Ramming 4 | . . 4 . . . . . Kinetic 1562 | . 100 452 . . . 608 402 Thermal 2246 | . 76 841 640 . . 441 248 Explosive 3571 | . 140 872 2253 . . . 306 Electromagnetic . | . . . . . . . . Impact 467 | . . 87 . . . 380 . Slashing . | . . . . . . . . Piercing 523 | . . . . . . 239 284 Highest Corruption 20 | . . . . . . 20 20 Average Corruption 19 | . . . . . . 18 20 Corruption Purged . | . . . . . . . . Corruption Blocked . | . . . . . . . . Effects 59 | . . . . . . 42 17 Message Errors 16 | . . . . . . 9 7 Matter Fused 13 | . . . . . . 9 4 Heat Flow Errors 7 | . . . . . . 5 2 Energy Discharges 7 | . . . . . . 6 1 Data Loss (minor) 2 | . . . . . . 2 . Data Loss (major) 5 | . . . . . . 4 1 Misfires 4 | . . . . . . 2 2 Alerts 2 | . . . . . . 2 . Weapon Failures 3 | . . . . . . 3 . Overload Shots . | . . . . . . . . Overflow Damage 332 | . 1 98 20 . . 193 20 Projectiles . | . . . . . . . . Explosions 82 | . 1 41 20 . . . 20 Melee 250 | . . 57 . . . 193 . Knockbacks 2 | . . 1 . . . 1 . Impact 2 | . . 1 . . . 1 . Kinetic . | . . . . . . . . Secondary . | . . . . . . . . Self-Inflicted Damage 318 | . . 85 233 . . . . Shots 11 | . . 4 7 . . . . Rammed 1 | . . 1 . . . . . Targets Rammed 1 | . . 1 . . . . . Kicked . | . . . . . . . . Crushed . | . . . . . . . . Highest Temperature 284 | . 54 284 162 . . 196 170 Average Temperature 77 | . 25 103 51 . . 60 62 Received Heat Transfer 2302 | . 30 703 255 . . 135 1179 Siege Activations . | . . . . . . . . Robots Corrupted 3 | . . 2 . . . 1 . Combat Hostiles 2 | . . 1 . . . 1 . Parts Fried 4 | . . 4 . . . . . Impact Corruptions 6 | . . 3 . . . 3 . Robots Melted 2 | . . 1 . . . 1 . Combat Hostiles 1 | . . 1 . . . . . Parts Melted 8 | . . 6 1 . . 1 . Heat Transferred 5818 | . 222 2183 1480 . . 1183 750 Parts Sabotaged . | . . . . . . . . Parts Stolen . | . . . . . . . . Parts Stripped . | . . . . . . . . Power Chain Reactions . | . . . . . . . . Alert | -11 -10 -9 -9 -9 -9 -6 -6 ------- Run | Yrd Mat Mat Sto Rec Scr Fac Ext Peak Influence 1089 | . 200 638 1089 579 . 367 228 Initial 424 | . . 84 228 424 . . 123 Average 369 | . 75 431 759 490 . 206 119 Maximum Alert Level 3 | . 1 2 3 2 . 1 1 Low Security (%) 28 | 100 73 12 . . . 37 85 Level 1 27 | . 26 21 11 2 . 62 14 Level 2 35 | . . 66 29 97 . . . Level 3 9 | . . . 58 . . . . Level 4 . | . . . . . . . . Level 5 . | . . . . . . . . High Security . | . . . . . . . . Max Security . | . . . . . . . . Squads Dispatched 16 | . . 3 4 . . 6 3 Investigation 2 | . . . . . . 1 1 Extermination . | . . . . . . . . Reinforcement 6 | . . 3 1 . . . 2 Assault 5 | . . . 3 . . 2 . Garrison 3 | . . . . . . 3 . Intercept . | . . . . . . . . Searches Triggered . | . . . . . . . . Construction Impeded 2 | . . . 1 . . . 1 Haulers Reinforced . | . . . . . . . . Active Scanning Responses . | . . . . . . . . Cargo Convoy Interrupts . | . . . . . . . . Stealth | -11 -10 -9 -9 -9 -9 -6 -6 --------- Run | Yrd Mat Mat Sto Rec Scr Fac Ext Distress Signals 5 | . . 2 . . . 2 1 Communications Jammed . | . . . . . . . . Distress Signals . | . . . . . . . . Times Spotted 122 | . 8 38 38 . . 24 14 Peak Tracking Total 10 | . 4 5 10 . . 6 5 Tactical Retreats 6 | . . 1 2 . . 3 . Traps | -11 -10 -9 -9 -9 -9 -6 -6 ------- Run | Yrd Mat Mat Sto Rec Scr Fac Ext Traps Triggered 3 | . . 1 1 . . . 1 Indirectly . | . . . . . . . . Trap Hack Attempts . | . . . . . . . . Triggered . | . . . . . . . . Disarmed . | . . . . . . . . Reprogrammed . | . . . . . . . . Reused 2 | . . . . . . 1 1 Traps Extracted . | . . . . . . . . Installed 2 | . . . . . . 1 1 Triggered 3 | . . . . . . 2 1 Most Traps Carried 3 | . . . . . 3 3 2 Machines | -11 -10 -9 -9 -9 -9 -6 -6 ---------- Run | Yrd Mat Mat Sto Rec Scr Fac Ext Machines Disabled 14 | . . . 6 . . 5 3 Max in Single Turn 1 | . . . 1 . . 1 1 Garrison Access 2 | . . . . . . 2 . Machines Repaired . | . . . . . . . . Machines Dismantled . | . . . . . . . . Machines Sabotaged . | . . . . . . . . Overloaded Fab Kills . | . . . . . . . . Hacking | -11 -10 -9 -9 -9 -9 -6 -6 --------- Run | Yrd Mat Mat Sto Rec Scr Fac Ext Machines Accessed 45 | . 3 7 7 8 1 11 8 Terminals 32 | . 3 5 7 1 . 8 8 Fabricators 2 | . . . . . . 2 . Repair Stations . | . . . . . . . . Recycling Units 8 | . . 1 . 7 . . . Scanalyzers 1 | . . 1 . . . . . Garrison Access 1 | . . . . . . 1 . Total Hacks 123 | . 10 17 19 13 14 23 27 Successful 70 | . 5 9 8 9 14 7 18 Failed 53 | . 5 8 11 4 . 16 9 Catastrophic 12 | . . 4 2 . . 4 2 Database Lockouts . | . . . . . . . . Manual 76 | . 10 11 16 11 1 14 13 Terminals 90 | . 10 13 19 4 . 17 27 Fabricators 5 | . . . . . . 5 . Repair Stations . | . . . . . . . . Recycling Units 10 | . . 1 . 9 . . . Scanalyzers 3 | . . 3 . . . . . Garrison Access 1 | . . . . . . 1 . Terminal Hacks 32 | . . 1 2 1 14 2 12 Record 15 | . . . . . 14 . 1 Robot Analysis 1 | . . . . . . . 1 Open Door 5 | . . . 1 . . 1 3 Branch Access Points 1 | . . 1 . . . . . Terminal Index 3 | . . . . 1 . 1 1 Alert Level 2 | . . . 1 . . . 1 Unreport Threat 2 | . . . . . . . 2 Locate Traps 1 | . . . . . . . 1 Recall Investigation 2 | . . . . . . . 2 Fabricator Hacks 2 | . . . . . . 2 . Network Status 1 | . . . . . . 1 . Build 1 | . . . . . . 1 . Repair Station Hacks . | . . . . . . . . Recycling Unit Hacks 1 | . . 1 . . . . . Retrieve Components 1 | . . 1 . . . . . Scanalyzer 3 | . . 3 . . . . . Insert Component 1 | . . 1 . . . . . Analyze 2 | . . 2 . . . . . Garrison Access Hacks . | . . . . . . . . Unauthorized Hacks 32 | . 5 4 6 8 . 3 6 Terminals 26 | . 5 4 6 2 . 3 6 Botnet 11 | . 2 2 2 1 . 2 2 Skim 15 | . 3 2 4 1 . 1 4 Fabricators . | . . . . . . . . Repair Stations . | . . . . . . . . Recycling Units 6 | . . . . 6 . . . Tunnel 6 | . . . . 6 . . . Scanalyzers . | . . . . . . . . Garrison Access . | . . . . . . . . Data Cores Recovered 2 | . . . 2 . . . . Used . | . . . . . . . . Hacking Detections 35 | . 3 6 8 2 . 11 5 Full Trace Events 1 | . . . . . . 1 . Feedback Events . | . . . . . . . . Feedback Blocked . | . . . . . . . . Robot Schematics Acquired . | . . . . . . . . Robots Built . | . . . . . . . . Authchips . | . . . . . . . . Time . | . . . . . . . . Total Robot Build Rating . | . . . . . . . . Part Schematics Acquired 1 | . . 1 . . . . . Parts Built 2 | . . . . . . 2 . Authchips . | . . . . . . . . Time 106 | . . . . . . 106 . Total Part Build Rating 12 | . . . . . . 12 . Parts Repaired . | . . . . . . . . Time . | . . . . . . . . Parts Recycled . | . . . . . . . . Recycled Matter . | . . . . . . . . Retrieved Matter . | . . . . . . . . Retrieved Components 3 | . . 3 . . . . . Parts Scanalyzed 1 | . . 1 . . . . . Part Schematics Acquired 1 | . . 1 . . . . . Parts Damaged . | . . . . . . . . Bothacking | -11 -10 -9 -9 -9 -9 -6 -6 ------------ Run | Yrd Mat Mat Sto Rec Scr Fac Ext Used RIF Installer . | . . . . . . . . Robots Hacked . | . . . . . . . . Non-combat . | . . . . . . . . Combat . | . . . . . . . . Robot Hacks Applied . | . . . . . . . . Relay Couplers Released 5 | . . . . . . 5 . Machine Destruction 2 | . . . . . . 2 . Programmers 3 | . . . . . . 3 . Fabnet Peak Effective % . | . . . . . . . . Robots Rewired . | . . . . . . . . Allies Hacked . | . . . . . . . . Hacks Repelled . | . . . . . . . . Allies | -11 -10 -9 -9 -9 -9 -6 -6 -------- Run | Yrd Mat Mat Sto Rec Scr Fac Ext Total Allies 18 | . . . 12 . 1 . 5 Largest Group 11 | . . . 10 10 11 11 5 Highest-Rated Group 152 | . . . 88 88 128 128 152 Highest-Rated Ally 40 | . . . 31 16 40 40 39 Total Orders 25 | . . . . . 25 . . STAY 8 | . . . . . 8 . . ROAM 6 | . . . . . 6 . . FOLLOW 11 | . . . . . 11 . . Ally Attacks 121 | . . . 21 . . 65 35 Total Damage 1501 | . . . 286 . . 699 516 Kills 11 | . . . 5 . . 4 2 Allies Corrupted . | . . . . . . . . Allies Melted . | . . . . . . . . Intel | -11 -10 -9 -9 -9 -9 -6 -6 ------- Run | Yrd Mat Mat Sto Rec Scr Fac Ext Robot Analysis Total 1 | . . . . . . . 1 Derelict Logs Recovered . | . . . . . . . . Drone Launches . | . . . . . . . . Drone Recoveries . | . . . . . . . . Exploration | -11 -10 -9 -9 -9 -9 -6 -6 ------------- Run | Yrd Mat Mat Sto Rec Scr Fac Ext Turns Passed 9716 | 77 305 1257 681 511 5364 1078 443 Spaces Moved 5252 | 44 163 554 292 395 2970 576 258 Core 317 | 3 . 2 . . 287 . 25 Treads 3850 | 41 163 552 272 . 2519 283 20 Legs 1085 | . . . 20 395 164 293 213 Wheels . | . . . . . . . . Hover . | . . . . . . . . Flight . | . . . . . . . . Fastest Speed 50 | 50 160 160 120 120 50 120 50 Average Speed 145 | 152 160 161 157 120 147 139 116 Slowest Speed 550 | 160 160 550 190 120 190 160 160 Overloaded Moves . | . . . . . . . . Propulsion Burnouts . | . . . . . . . . Robots Hopped . | . . . . . . . . Cave-ins Triggered . | . . . . . . . . Exploration Rate (%) 46 | 4 33 52 53 83 89 18 41 Regions Visited 7 Branch Regions 4 Pre-discovered Areas 9 | . . . . 6 3 . . Known Exits Taken 3 | . . 1 . . 1 1 . Unknown Exits Taken 4 | 1 1 . 1 1 . . . Scrap Searched 11 | . . . . . 11 . . Spaces Dug 5 | . . . . . . 5 . Terrain Destroyed 212 | . 7 50 141 . . 8 6 Melee 5 | . . . . . . 5 . Projectile 10 | . . . 1 . . 3 6 AOE 197 | . 7 50 140 . . . . Terrain Rammed . | . . . . . . . . Walls Destroyed . | . . . . . . . . Machines Disabled . | . . . . . . . . Actions | -11 -10 -9 -9 -9 -9 -6 -6 --------- Run | Yrd Mat Mat Sto Rec Scr Fac Ext Total 6922 | 51 186 775 434 432 3975 722 347 Wait 1101 | . 7 73 36 37 919 15 14 Move 5245 | 43 162 553 291 394 2969 575 258 Hop . | . . . . . . . . Pick Up 86 | 2 3 20 9 . 28 17 7 Fast Attach 59 | 6 1 14 9 . 9 10 10 Attach 40 | . . 6 4 1 7 10 12 Detach 10 | . 1 2 3 . 3 1 . Swap 41 | . 1 13 12 . 4 8 3 Drop 100 | . . 19 21 . 36 15 9 Fire 187 | . 11 72 43 . . 37 24 Melee 50 | . . 2 6 . . 33 9 Ram . | . . . . . . . . Kick . | . . . . . . . . Crush 1 | . . 1 . . . . . Escape Stasis . | . . . . . . . . Rewire . | . . . . . . . . Trap 2 | . . . . . . 1 1 Miscellaneous . | . . . . . . . . Route ------- -11/Scrapyard -10/Materials -9/Materials (discovered 4 exits: [*Mat] / Min / *Sto x2) -9/Storage -9/Recycling (discovered 2 exits: [*Fac] / *Scr) -9/Scraptown (discovered 2 exits: *Fac x2) -6/Factory (discovered 3 exits: Fac x2 / *Ext) -6/Extension History --------- Turn | Location | Event 37 | -11/Scrapyard | Discovered new exit (range 15) 78 | -11/Scrapyard | Entered Materials 317 | -10/Materials | Discovered new exit (range 15) 320 | -10/Materials | Build established: Mutant 383 | -10/Materials | Entered another Materials area 383 | -9/Materials | Evolved 2 slots: Propulsion x1, Utility x1 797 | -9/Materials | Lost 6 parts (2n2u2w) 843 | -9/Materials | Destroyed 8 combat bots 1087 | -9/Materials | Build established: Scavenger-Mutant 1182 | -9/Materials | Lost 3 parts (1n1u1w) 1281 | -9/Materials | Discovered new exit (range 11) 1415 | -9/Materials | Discovered new exit (range 10) 1600 | -9/Materials | Identified exit to Mines 1600 | -9/Materials | Identified exit to Storage 1640 | -9/Materials | Entered Storage 1650 | -9/Storage | Met a pair of Derelict thieves 1743 | -9/Storage | Destroyed 7 combat bots 1960 | -9/Storage | Build established: Mutant 2040 | -9/Storage | First assault squad dispatched 2048 | -9/Storage | Core integrity fell below 50% 2139 | -9/Storage | Destroyed 9 combat bots 2235 | -9/Storage | Assisted by bots powering up and referring to "LRC-V3" 2289 | -9/Storage | Used back door to open Recycling access 2289 | -9/Storage | Discovered new exit (range 5) 2321 | -9/Storage | Entered Recycling 2321 | -9/Recycling | Accompanied by 10 allies 2536 | -9/Recycling | Build established: Commander-Mutant 2715 | -9/Recycling | Discovered new exit (range 15) 2770 | -9/Recycling | Scanned before Scraplab entrance 2787 | -9/Recycling | Entered Scraplab 2797 | -9/Recycling | Discovered new exit (range 3) 2832 | -9/Recycling | Entered Scraptown 2832 | -9/Scraptown | Accompanied by 10 allies 2906 | -9/Scraptown | Visited UFD Registry 2906 | -9/Scraptown | Registered with UFD as "Softshell" 2914 | -9/Scraptown | Visited Comm Corps 2928 | -9/Scraptown | Visited CPS Storage 2944 | -9/Scraptown | Visited Junk Repository 2984 | -9/Scraptown | Visited Bundlers 3105 | -9/Scraptown | Visited CR-KLE's Repair Center 3130 | -9/Scraptown | Visited Cave Peace 3143 | -9/Scraptown | Visited Symbiants 3281 | -9/Scraptown | Visited Junk Repository 3329 | -9/Scraptown | Visited A0-MCA Data Center 3338 | -9/Scraptown | Given a C+ rating by A0-MCA 3342 | -9/Scraptown | Found A0-MCA's Component Scanner 3372 | -9/Scraptown | Visited Botcube Research 3534 | -9/Scraptown | Visited Curators Association 3572 | -9/Scraptown | Visited Scrap Suit Storage 3593 | -9/Scraptown | Visited DA-N13 Charitable Foundation 3608 | -9/Scraptown | Found DCF Scrap (29 items) 3628 | -9/Scraptown | Visited Cartography Club 3660 | -9/Scraptown | Found Surveybot 17 Chip 3841 | -9/Scraptown | Discovered new exit (range 5) 3941 | -9/Scraptown | Visited Scrapoid Pod Storage 3970 | -9/Scraptown | Visited Science Guys 3999 | -9/Scraptown | Visited LU-1G1's Boring Crew 4091 | -9/Scraptown | Found Botcube 4153 | -9/Scraptown | Botcube activated 4173 | -9/Scraptown | Botcube completed mutation into legged form, armed with 1 gun, 1 launcher. 4830 | -9/Scraptown | Learned location of Upper Caves (-5) 4830 | -9/Scraptown | Learned location of Extension (-6) 4830 | -9/Scraptown | Learned location of Archives (-6) 4830 | -9/Scraptown | Learned 8 Access zone layouts 4830 | -9/Scraptown | Learned 4 Recycling zone layouts 4830 | -9/Scraptown | Learned 16 Upper Caves zone layouts 4830 | -9/Scraptown | Learned 12 Proximity Caves zone layouts 4830 | -9/Scraptown | Learned 4 Hub_04(d) zone layouts 4830 | -9/Scraptown | Learned location of 1 exit from Factory 4830 | -9/Scraptown | Learned location of 1 exit from Research 4830 | -9/Scraptown | Identified exit to Factory 6904 | -9/Scraptown | Found Deep Structural Scanner 8196 | -9/Scraptown | Entered Factory 8196 | -6/Factory | Accompanied by 11 allies 8196 | -6/Factory | Evolved 6 slots: Power x1, Propulsion x1, Utility x4 8197 | -6/Factory | Identified exit to Factory 8198 | -6/Factory | Identified exit to Extension 8364 | -6/Factory | Lost 5 allies 8484 | -6/Factory | System corruption reached 10% 8525 | -6/Factory | Lost 6 parts (2p4u) 8543 | -6/Factory | Lost 6 allies 8765 | -6/Factory | Fabricated KE Penetrator? 8968 | -6/Factory | Garrison activated, responded to threat 9274 | -6/Factory | Entered Extension 9278 | -6/Extension | Disrupted transfer network 9339 | -6/Extension | Rescued a captive Derelict 9372 | -6/Extension | Rescued a captive Derelict 9372 | -6/Extension | Rescued a captive Derelict 9411 | -6/Extension | Build established: Mutant 9422 | -6/Extension | Rescued a captive Derelict 9425 | -6/Extension | Rescued a captive Derelict 9576 | -6/Extension | Spotted B-75 Beast 9588 | -6/Extension | Spotted B-75 Beast 9621 | -6/Extension | Destroyed B-75 Beast 9638 | -6/Extension | Core integrity fell below 50% 9642 | -6/Extension | Destroyed B-75 Beast 9646 | -6/Extension | Core integrity fell below 20% 9660 | -6/Extension | Lost 5 allies 9678 | -6/Extension | Lost 17 parts (4p5n3u5w) 9717 | -6/Extension | Destroyed by G-50 Soldier with Heavy Laser Last Messages --------------- 09670_ U-05 Engineer lays Concrete. 09673_ Acquired Imp. Medium Treads. 09674_ U-05 Engineer lays Concrete. 09676_ Acquired Imp. Cooling System. 09677_ U-05 Engineer lays Concrete. 09681_ Acquired Imp. Medium Treads. 09682_ U-05 Engineer lays Concrete. 09684_ Acquired Lyr. Medium Armor Plating. 09684_ U-05 Engineer lays Concrete. 09685_ System corrupted: FCS attempts to trigger Hvy. Plasma Cannon. 09685_ System corrupted: Hvy. Plasma Cannon misfires. 09690_ Acquired Imp. Medium Treads. 09694_ Acquired 80 matter. 09697_ Acquired Rnf. Deuterium Engine. 09703_ ZS/XRKDDQUVI:6HO&6D<:FYRBC4 09704_ Acquired Hvy. Plasma Cannon. 09708_ Acquired Imp. Cooling System. 09711_ Acquired Magnetic Acceleration Cannon. Map ----- +----------------------------------------------------+ | #############] ##^^ ^^####????????????????????? | | ##################%% ####????????????????????? | | ################## ####????????????????????? | | #######??#########= ####????????????????????? | | ?????????######### ####????????????????????? | | ??????????######## =####????????????????????? | | ??????????#########+####=####????????????????????? | | ??????????###### ##%####????????????????????? | | ??????????####"" ###!####????????????????????? | | ??????????####"T "### ####????????????????????? | | ??????????####"" Y"### ####????????????????????? | | ??????????###### ""### ####???????#????????????? | | ??????????######! ##"*########## #????????????? | | ??????????########T#####R########## #????????????? | | ??????????############%#=;#####;; ; ###??????????? | | ????????????############%*## ;; ;;; ;"#??????????? | | ????????????##########!*[*%[=%! ###????????? | | ??????????????########! =! ![ " #????????? | | ??????????????????## #!% % ;#?????????? | | ??????????????????####!!! ]! =!%=% ;#?????????? | | ??????????############ / [/%!%! ;####??????? | | ????????? u ! * = ! ???? | | ????????? ! % g ???? | | ???????? g ?? | | ???????? ??? | | ???????? * @! ??? | | ????????????########## !!% #########??? | | ????????????????###### [ ! #??????????? | | ????????????????###### % #??????????? | | ????????????????###### #??????????? | | ??????????????????#### #??????????? | | ??????????????????#########T#"""#######??????????? | | ??????????????????###########????????????????????? | | ???????????????????##########????????????????????? | | | | | | | | | | | | | | | | | | | | | | | | | | | | | | | | | +----------------------------------------------------+ Best States ------------- Heat Dissipation 113 Coolant Potential 65 Energy Generation 32 Energy Capacity 490 Matter Stores 300 Matter Capacity 300 Sight Range 16 Terrain Scan Range 14 Terrain Scan Density 1210 Base Temperature (-) 150 Armor Coverage 225 Evasion (%) 65 Melee Accuracy 8 Recoil Reduction 4 Offensive Hacking 10 Item Schematics ----------------- Imp. Flight Unit | -9/Materials | Scanalyzed Robot Schematics ------------------ None Fabricated ------------ KE Penetrator | x2 | -6/Factory | Preloaded Alien Tech Used ----------------- None Achievements -------------- None Challenges ------------ None Game ------ Seed LargeTiamatDatajack Manual? 0 Play Time 01:07:02 Cumulative 364.0 hours Start 2024.09.15 @ 16:40:37 End 2024.09.15 @ 18:21:57 Sessions 3 Manual Loads 0 Difficulty Rogue Special Mode None Game No. 370 Rogue 365 Adventurer 5 Explorer 0 Win Type - Total 7 Types 5/0/0/2/0/0/0/0/0 Lore% 79 Gallery% 83 Achievement% 69 Wizard Run 0 Options --------- Layout 1 ASCII 0 Keyboard 0 Movement Arrows Keybinds 0 Fullscreen 1 Font 24/Terminus Map View 50x35 Zoom Use 0% Tactical HUD 1 Map Filters NONE Filters NONE Steam 1 RUN: 3af439e3-b435-44b0-a13c-546a212a5c9f